Workbook

Sheet budgets
U2: 2 | V2: 3 | W2: 4 | X2: 5 | Y2: 6
T3: =AH4*1000+41 -> 17113041 | U3: =VLOOKUP($T3,$T$9:$Y$397,U$2,FALSE) -> 160 | V3: 125 | W3: 189 | X3: 217 | Y3: 173 | Z3: =AVERAGE(U3:Y3)+10 -> 182.8
T4: =AH4*1000+81 -> 17113081 | U4: 56 | V4: 52 | W4: 56 | X4: 63 | Y4: 57 | Z4: =AVERAGE(U4:Y4)+2 -> 58.8 | AC4: Illinois | AD4: 17 | AE4: IL | AG4: =E80 -> McLean | AH4: =VLOOKUP(AG4,$AG$11:$AH$113,2,FALSE) -> 17113
AC5: Indiana | AD5: 18 | AE5: IN
C7: 2016 Budgets | N7: =SUM(N11:O42) -> 0
D8: Default budget: | E8: Central Illinois - High | T8: code | U8: 2011 | V8: 2012 | W8: 2013 | X8: 2014 | Y8: 2015 | AM8: Corn
B9: =IF(N9=0,"","Budget inputs vary from defaults. Hit 'Use Defaults' to use default entries.") ->  | N9: =SUM(N14:O59) -> 0 | T9: 17001041 | U9: 134 | V9: 112 | W9: 152 | X9: 200 | Y9: 150
B10: Enter budget information in blue text cells. Clicking "Use Default" will replace all items. | R10: =TRANSPOSE(AM11:AS11) -> Northern Illinois | T10: 17001081 | U10: 41 | V10: 40 | W10: 43 | X10: 51 | Y10: 44
E11: Corn | F11: Soybeans | G11: Average | R11: Central Illinois - High | T11: 17003041 | U11: 100 | V11: 108 | W11: 173 | X11: 191 | Y11: 143 | AA11: Adams | AB11: 17001 | AD11: Adams | AE11: 18001 | AG11: =IF($E$79=$AC$4,AA11,AD11) -> Adams | AH11: =IF($AC$4=$E$79,AB11,AE11) -> 17001 | AJ11: 1 | AM11: Northern Illinois | AN11: Central Illinois - High | AO11: Central Illinois - Low | AP11: Southern Illinois | AQ11: Indiana - High | AR11: Indiana - Avg | AS11: Indiana - Low | AV11: =AM11 -> Northern Illinois | AW11: Central Illinois - High | AX11: Central Illinois - Low | AY11: Southern Illinois | AZ11: Indiana - High | BA11: Indiana - Avg | BB11: Indiana - Low
R12: Central Illinois - Low | T12: 17003081 | U12: 35 | V12: 43 | W12: 46 | X12: 55 | Y12: 45 | AA12: Alexander | AB12: 17003 | AD12: Allen | AE12: 18003 | AG12: Alexander | AH12: 17003 | AJ12: 2
R13: Southern Illinois | T13: 17005041 | U13: 117 | V13: 93 | W13: 150 | X13: 179 | Y13: 135 | AA13: Bond | AB13: 17005 | AD13: Bartholomew | AE13: 18005 | AG13: Bond | AH13: 17005 | AJ13: 3
D14: Percent of acres | E14: =K14 -> 0.6 | F14: =1-E14 -> 0.4 | G14: =SUM(E14:F14) -> 1 | K14: =HLOOKUP($E$8,$AM$11:$AS$59,AJ14,FALSE) -> 0.6 | L14: =1-K14 -> 0.4 | N14: =IF(E14=K14,0,1) -> 0 | O14: =IF(F14=L14,0,1) -> 0 | R14: Indiana - High | T14: 17005081 | U14: 36 | V14: 30 | W14: 39 | X14: 50 | Y14: 39 | AA14: Boone | AB14: 17007 | AD14: Benton | AE14: 18007 | AG14: Boone | AH14: 17007 | AJ14: 4 | AK14: Percent of acres | AM14: 0.6 | AN14: 0.6 | AO14: 0.6 | AP14: 0.6 | AQ14: 0.5 | AR14: 0.5 | AS14: 0.5 | AU14: Percent of acres
D15: Yield per acre | E15: =K15 -> 198 | F15: =L15 -> 57 | K15: =HLOOKUP($E$8,$AM$11:$AS$59,AJ15,FALSE) -> 198 | L15: =HLOOKUP($E$8,$AV$11:$BB$52,AJ15,FALSE) -> 57 | N15: 0 | O15: 0 | R15: Indiana - Avg | T15: 17007041 | U15: 180 | V15: 113 | W15: 178 | X15: 188 | Y15: 165 | AA15: Brown | AB15: 17009 | AD15: Blackford | AE15: 18009 | AG15: Brown | AH15: 17009 | AJ15: =AJ14+1 -> 5 | AK15: Yield per acre | AM15: 194 | AN15: 198 | AO15: 184 | AP15: 162 | AQ15: 198 | AR15: 165 | AS15: 132 | AU15: Yield per acre | AV15: 59 | AW15: 57 | AX15: 52 | AY15: 47 | AZ15: 60 | BA15: 50 | BB15: 40
D16: Futures price ($/bu.) | E16: =K16 -> 4.35 | F16: =L16 -> 10.3 | K16: 4.35 | L16: 10.3 | N16: 0 | O16: 0 | R16: Indiana - Low | T16: 17007081 | U16: 60 | V16: 44 | W16: 51 | X16: 57 | Y16: 53 | AA16: Bureau | AB16: 17011 | AD16: Boone | AE16: 18011 | AG16: Bureau | AH16: 17011 | AJ16: =AJ15+1 -> 6 | AK16: Futures price ($/bu.) | AM16: 4.35 | AN16: =AM16 -> 4.35 | AO16: =AN16 -> 4.35 | AP16: 4.35 | AQ16: 4.35 | AR16: 4.35 | AS16: 4.35 | AU16: Futures price ($/bu.) | AV16: 10.3 | AW16: =AV16 -> 10.3 | AX16: =AW16 -> 10.3 | AY16: 10.3 | AZ16: 10.3 | BA16: 10.3 | BB16: 10.3
D17: Basis ($/bu.) | E17: =K17 -> 0.3 | F17: =L17 -> 0.3 | K17: 0.3 | L17: 0.3 | N17: 0 | O17: 0 | T17: 17009041 | U17: 127 | V17: 112 | W17: 176 | X17: 194 | Y17: 152 | AA17: Calhoun | AB17: 17013 | AD17: Brown | AE17: 18013 | AG17: Calhoun | AH17: 17013 | AJ17: 7 | AK17: Basis ($/bu.) | AM17: 0.3 | AN17: =AM17 -> 0.3 | AO17: =AN17 -> 0.3 | AP17: 0.3 | AQ17: 0.3 | AR17: 0.3 | AS17: 0.3 | AU17: Basis ($/bu.) | AV17: 0.3 | AW17: 0.3 | AX17: 0.3 | AY17: 0.3 | AZ17: 0.3 | BA17: 0.3 | BB17: 0.3
D18: Cash price ($/bu.) | E18: =E16-E17 -> 4.05 | F18: =F16-F17 -> 10 | T18: 17009081 | U18: 39 | V18: 36 | W18: 47 | X18: 51 | Y18: 43 | AA18: Carroll | AB18: 17015 | AD18: Carroll | AE18: 18015 | AG18: Carroll | AH18: 17015 | AJ18: 8 | AK18: Cash price ($/bu.) | AU18: Cash price ($/bu.)
T19: 17011041 | U19: 177 | V19: 145 | W19: 186 | X19: 195 | Y19: 176 | AA19: Cass | AB19: 17017 | AD19: Cass | AE19: 18017 | AG19: Cass | AH19: 17017 | AJ19: 9
C20: Revenue | T20: 17011081 | U20: 57 | V20: 55 | W20: 55 | X20: 60 | Y20: 57 | AA20: Champaign | AB20: 17019 | AD20: Clark | AE20: 18019 | AG20: Champaign | AH20: 17019 | AJ20: 10
D21: Crop revenue | E21: =E18*E15 -> 801.9 | F21: =F18*F15 -> 570 | G21: =E21*$E$14+F21*$F$14 -> 709.14 | T21: 17013041 | U21: 144 | V21: 107 | W21: 165 | X21: 194 | Y21: 153 | AA21: Christian | AB21: 17021 | AD21: Clay | AE21: 18021 | AG21: Christian | AH21: 17021 | AJ21: 11 | AK21: Crop revenue | AU21: Crop revenue
D22: Other revenue | E22: =K22 -> 0 | F22: =L22 -> 0 | G22: =E22*$E$14+F22*$F$14 -> 0 | K22: 0 | L22: =HLOOKUP($E$8,$AV$11:$BB$52,AJ22,FALSE) -> 0 | N22: =IF(E22=K22,0,1) -> 0 | O22: =IF(F22=L22,0,1) -> 0 | T22: 17013081 | U22: 43 | V22: 41 | W22: 46 | X22: 46 | Y22: 44 | AA22: Clark | AB22: 17023 | AD22: Clinton | AE22: 18023 | AG22: Clark | AH22: 17023 | AJ22: 12 | AK22: Other revenue | AU22: Other revenue
D23: ARC/PLC payments | E23: =ROUND(IF(E88=$S$76,E109,E111)*E103,) -> 0 | F23: =ROUND(IF(F88=$S$76,F109,F111)*F103,) -> 11 | G23: =E23*E103+F23*F103 -> 4.4 | T23: 17015041 | U23: 183 | V23: 156 | W23: 198 | X23: 194 | Y23: 183 | AA23: Clay | AB23: 17025 | AD23: Crawford | AE23: 18025 | AG23: Clay | AH23: 17025 | AJ23: 13 | AK23: ARC payments | AU23: ARC payments
D24: Crop insurance | E24: =MAX(0,MAX(E18,E86)*E85*E84-E16*E15) -> 0 | F24: =MAX(0,MAX(F18,F86)*F85*F84-F16*F15) -> 0 | G24: =E24*$E$14+F24*$F$14 -> 0 | T24: 17015081 | U24: 64 | V24: 59 | W24: 57 | X24: 60 | Y24: 60 | AA24: Clinton | AB24: 17027 | AD24: Daviess | AE24: 18027 | AG24: Clinton | AH24: 17027 | AJ24: 14 | AK24: Crop insurance | AU24: Crop insurance
C25: Total revenue | E25: =SUM(E21:E23) -> 801.9 | F25: =SUM(F21:F23) -> 581 | G25: =SUM(G21:G24) -> 713.54 | T25: 17017041 | U25: 164 | V25: 122 | W25: 184 | X25: 207 | Y25: 169 | AA25: Coles | AB25: 17029 | AD25: Dearborn | AE25: 18029 | AG25: Coles | AH25: 17029 | AJ25: 15
T26: 17017081 | U26: 50 | V26: 39 | W26: 52 | X26: 53 | Y26: 49 | AA26: Cook | AB26: 17031 | AD26: Decatur | AE26: 18031 | AG26: Cook | AH26: 17031 | AJ26: 16
C27: Expenses | T27: 17019041 | U27: 164 | V27: 123 | W27: 168 | X27: 215 | Y27: 168 | AA27: Crawford | AB27: 17033 | AD27: DeKalb | AE27: 18033 | AG27: Crawford | AH27: 17033 | AJ27: 17
D28: Fertilizer | E28: =K28 -> 138 | F28: 49 | G28: =E28*$E$14+F28*$F$14 -> 102.4 | K28: 138 | L28: =HLOOKUP($E$8,$AV$11:$BB$52,AJ28,FALSE) -> 49 | N28: =IF(E28=K28,0,1) -> 0 | O28: =IF(F28=L28,0,1) -> 0 | T28: 17019081 | U28: 51 | V28: 47 | W28: 53 | X28: 64 | Y28: 54 | AA28: Cumberland | AB28: 17035 | AD28: Delaware | AE28: 18035 | AG28: Cumberland | AH28: 17035 | AJ28: 18 | AK28: Fertilizer | AM28: 144 | AN28: 138 | AO28: 138 | AP28: 138 | AQ28: 156 | AR28: 147 | AS28: 137 | AU28: Fertilizer | AV28: 37 | AW28: 49 | AX28: 43 | AY28: 49 | AZ28: 67 | BA28: 57 | BB28: 47
D29: Pesticide | E29: 60 | F29: 41 | G29: 52.4 | K29: 60 | L29: 41 | N29: =IF(E29=K29,0,1) -> 0 | O29: =IF(F29=L29,0,1) -> 0 | T29: 17021041 | U29: 155 | V29: 129 | W29: 199 | X29: 216 | Y29: 175 | AA29: DeKalb | AB29: 17037 | AD29: Dubois | AE29: 18037 | AG29: DeKalb | AH29: 17037 | AJ29: 19 | AK29: Pesticide | AM29: 60 | AN29: 60 | AO29: 60 | AP29: 60 | AQ29: 43 | AR29: 43 | AS29: 43 | AU29: Pesticide | AV29: 39 | AW29: 41 | AX29: 41 | AY29: 41 | AZ29: 28 | BA29: 28 | BB29: 28
D30: Seed | E30: 123 | F30: 78 | G30: 105 | K30: 123 | L30: 78 | N30: 0 | O30: 0 | T30: 17021081 | U30: 52 | V30: 55 | W30: 56 | X30: 58 | Y30: 55 | AA30: De Witt | AB30: 17039 | AD30: Elkhart | AE30: 18039 | AG30: De Witt | AH30: 17039 | AJ30: 20 | AK30: Seed | AM30: 124 | AN30: 123 | AO30: 128 | AP30: 119 | AQ30: 123 | AR30: 123 | AS30: 100 | AU30: Seed | AV30: 78 | AW30: 78 | AX30: 80 | AY30: 78 | AZ30: 74 | BA30: 74 | BB30: 74
D31: Drying | E31: 23 | F31: 1 | G31: 14.2 | K31: 23 | L31: 1 | N31: 0 | O31: 0 | T31: 17023041 | U31: 138 | V31: 107 | W31: 172 | X31: 197 | Y31: 154 | AA31: Douglas | AB31: 17041 | AD31: Fayette | AE31: 18041 | AG31: Douglas | AH31: 17041 | AJ31: 21 | AK31: Drying | AM31: 28 | AN31: 23 | AO31: 18 | AP31: 16 | AQ31: 37 | AR31: 30 | AS31: 24 | AU31: Drying | AV31: 1 | AW31: 1 | AX31: 1 | AY31: 1 | AZ31: 0 | BA31: 0 | BB31: 0
D32: Storage | E32: 5 | F32: 7 | G32: 5.8 | K32: 5 | L32: 7 | N32: 0 | O32: 0 | T32: 17023081 | U32: 45 | V32: 38 | W32: 48 | X32: 57 | Y32: 47 | AA32: DuPage | AB32: 17043 | AD32: Floyd | AE32: 18043 | AG32: DuPage | AH32: 17043 | AJ32: 22 | AK32: Storage | AM32: 5 | AN32: 5 | AO32: 5 | AP32: 5 | AQ32: 6 | AR32: 6 | AS32: 5 | AU32: Storage | AV32: 3 | AW32: 7 | AX32: 7 | AY32: 7 | AZ32: 6 | BA32: 6 | BB32: 5
D33: Crop insurance | E33: 27 | F33: 16 | G33: 22.6 | K33: 27 | L33: 16 | N33: 0 | O33: 0 | T33: 17025041 | U33: 119 | V33: 85 | W33: 149 | X33: 172 | Y33: 131 | AA33: Edgar | AB33: 17045 | AD33: Fountain | AE33: 18045 | AG33: Edgar | AH33: 17045 | AJ33: 23 | AK33: Crop insurance | AM33: 28 | AN33: 27 | AO33: 26 | AP33: 24 | AQ33: 20 | AR33: 20 | AS33: 20 | AU33: Crop insurance | AV33: 19 | AW33: 16 | AX33: 16 | AY33: 16 | AZ33: 15 | BA33: 15 | BB33: 15
D34: Other direct expenses | E34: 0 | F34: 0 | G34: 0 | K34: 0 | L34: 0 | N34: 0 | O34: 0 | T34: 17025081 | U34: 32 | V34: 25 | W34: 40 | X34: 48 | Y34: 36 | AA34: Edwards | AB34: 17047 | AD34: Franklin | AE34: 18047 | AG34: Edwards | AH34: 17047 | AJ34: 24 | AK34: Other direct expenses | AM34: 0 | AN34: 0 | AO34: 0 | AP34: 0 | AQ34: 0 | AR34: 0 | AS34: 0 | AU34: Other direct expenses | AV34: 0 | AW34: 0 | AX34: 0 | AY34: 0 | AZ34: 0 | BA34: 0 | BB34: 0
C35: Total direct expenses | E35: =SUM(E28:E34) -> 376 | F35: =SUM(F28:F34) -> 192 | G35: =SUM(G28:G34) -> 302.4 | T35: 17027041 | U35: 116 | V35: 97 | W35: 158 | X35: 181 | Y35: 138 | AA35: Effingham | AB35: 17049 | AD35: Fulton | AE35: 18049 | AG35: Effingham | AH35: 17049 | AJ35: 25
T36: 17027081 | U36: 34 | V36: 28 | W36: 39 | X36: 52 | Y36: 38 | AA36: Fayette | AB36: 17051 | AD36: Gibson | AE36: 18051 | AG36: Fayette | AH36: 17051 | AJ36: 26
D37: Machine hire/lease | E37: =K37 -> 11 | F37: 10 | G37: =E37*$E$14+F37*$F$14 -> 10.6 | K37: 11 | L37: =HLOOKUP($E$8,$AV$11:$BB$52,AJ37,FALSE) -> 10 | N37: =IF(E37=K37,0,1) -> 0 | O37: =IF(F37=L37,0,1) -> 0 | T37: 17029041 | U37: 152 | V37: 118 | W37: 182 | X37: 210 | Y37: 166 | AA37: Ford | AB37: 17053 | AD37: Grant | AE37: 18053 | AG37: Ford | AH37: 17053 | AJ37: 27 | AK37: Machine hire/lease | AM37: 19 | AN37: 11 | AO37: 13 | AP37: 10 | AQ37: 0 | AR37: 0 | AS37: 0 | AU37: Machine hire/lease | AV37: 17 | AW37: 10 | AX37: 10 | AY37: 9 | AZ37: 0 | BA37: 0 | BB37: 0
D38: Utilities | E38: 5 | F38: 5 | G38: 5 | K38: 5 | L38: 5 | N38: 0 | O38: 0 | T38: 17029081 | U38: 46 | V38: 44 | W38: 56 | X38: 60 | Y38: 52 | AA38: Franklin | AB38: 17055 | AD38: Greene | AE38: 18055 | AG38: Franklin | AH38: 17055 | AJ38: 28 | AK38: Utilities | AM38: 5 | AN38: 5 | AO38: 5 | AP38: 6 | AQ38: 5 | AR38: 5 | AS38: 5 | AU38: Utilities | AV38: 5 | AW38: 5 | AX38: 5 | AY38: 5 | AZ38: 5 | BA38: 5 | BB38: 5
D39: Machine repair | E39: 25 | F39: 22 | G39: 23.8 | K39: 25 | L39: 22 | N39: 0 | O39: 0 | T39: 17031041 | U39: 123 | V39: 114 | W39: 125 | X39: 143 | Y39: 126 | AA39: Fulton | AB39: 17057 | AD39: Hamilton | AE39: 18057 | AG39: Fulton | AH39: 17057 | AJ39: 29 | AK39: Machine repair | AM39: 31 | AN39: 25 | AO39: 28 | AP39: 33 | AQ39: 22 | AR39: 22 | AS39: 22 | AU39: Machine repair | AV39: 27 | AW39: 22 | AX39: 22 | AY39: 22 | AZ39: 18 | BA39: 18 | BB39: 18
D40: Fuel and oil | E40: 20 | F40: 21 | G40: 20.4 | K40: 20 | L40: 21 | N40: 0 | O40: 0 | T40: 17031081 | U40: 43 | V40: 46 | W40: 39 | X40: 42 | Y40: 43 | AA40: Gallatin | AB40: 17059 | AD40: Hancock | AE40: 18059 | AG40: Gallatin | AH40: 17059 | AJ40: 30 | AK40: Fuel and oil | AM40: 20 | AN40: 20 | AO40: 20 | AP40: 20 | AQ40: 19 | AR40: 19 | AS40: 19 | AU40: Fuel and oil | AV40: 24 | AW40: 21 | AX40: 21 | AY40: 21 | AZ40: 11 | BA40: 11 | BB40: 11
D41: Light Vehicle | E41: 2 | F41: 2 | G41: 2 | K41: 2 | L41: 2 | N41: 0 | O41: 0 | T41: 17033041 | U41: 144 | V41: 101 | W41: 151 | X41: 183 | Y41: 145 | AA41: Greene | AB41: 17061 | AD41: Harrison | AE41: 18061 | AG41: Greene | AH41: 17061 | AJ41: 31 | AK41: Light Vehicle | AM41: 2 | AN41: 2 | AO41: 2 | AP41: 2 | AQ41: 0 | AR41: 0 | AS41: 0 | AU41: Light Vehicle | AV41: 2 | AW41: 2 | AX41: 2 | AY41: 2 | AZ41: 0 | BA41: 0 | BB41: 0
D42: Machinery depreciation | E42: 69 | F42: 63 | G42: 66.6 | K42: 69 | L42: 63 | N42: 0 | O42: 0 | T42: 17033081 | U42: 42 | V42: 29 | W42: 46 | X42: 50 | Y42: 42 | AA42: Grundy | AB42: 17063 | AD42: Hendricks | AE42: 18063 | AG42: Grundy | AH42: 17063 | AJ42: 32 | AK42: Machinery depreciation | AM42: 75 | AN42: 69 | AO42: 68 | AP42: 73 | AQ42: 48 | AR42: 48 | AS42: 48 | AU42: Machinery depreciation | AV42: 68 | AW42: 63 | AX42: 63 | AY42: 63 | AZ42: 38 | BA42: 38 | BB42: 38
D43: Other power costs | E43: 0 | F43: 0 | G43: 0 | K43: 0 | L43: 0 | N43: 0 | O43: 0 | T43: 17035041 | U43: 147 | V43: 111 | W43: 171 | X43: 194 | Y43: 156 | AA43: Hamilton | AB43: 17065 | AD43: Henry | AE43: 18065 | AG43: =IF($E$79=$AC$4,AA43,AD43) -> Hamilton | AH43: =IF($AC$4=$E$79,AB43,AE43) -> 17065 | AJ43: 33 | AK43: Other power costs | AM43: 0 | AN43: 0 | AO43: 0 | AP43: 0 | AQ43: 0 | AR43: 0 | AS43: 0 | AU43: Other power costs | AV43: 0 | AW43: 0 | AX43: 0 | AY43: 0 | AZ43: 0 | BA43: 0 | BB43: 0
C44: Total power expenses | E44: =SUM(E37:E43) -> 132 | F44: =SUM(F37:F43) -> 123 | G44: =SUM(G37:G43) -> 128.4 | T44: 17035081 | U44: 46 | V44: 43 | W44: 49 | X44: 55 | Y44: 48 | AA44: Hancock | AB44: 17067 | AD44: Howard | AE44: 18067 | AG44: Hancock | AH44: 17067 | AJ44: 34
T45: 17037041 | U45: 184 | V45: 159 | W45: 193 | X45: 192 | Y45: 182 | AA45: Hardin | AB45: 17069 | AD45: Huntington | AE45: 18069 | AG45: Hardin | AH45: 17069 | AJ45: 35
D46: Hired labor | E46: =K46 -> 19 | F46: 16 | G46: =E46*$E$14+F46*$F$14 -> 17.8 | K46: 19 | L46: =HLOOKUP($E$8,$AV$11:$BB$52,AJ46,FALSE) -> 16 | N46: =IF(E46=K46,0,1) -> 0 | O46: =IF(F46=L46,0,1) -> 0 | T46: 17037081 | U46: 60 | V46: 51 | W46: 58 | X46: 60 | Y46: 57 | AA46: Henderson | AB46: 17071 | AD46: Jackson | AE46: 18071 | AG46: Henderson | AH46: 17071 | AJ46: 36 | AK46: Hired labor | AM46: 21 | AN46: 19 | AO46: =AN46+1 -> 20 | AP46: 21 | AQ46: 14 | AR46: 14 | AS46: 14 | AU46: Hired labor | AV46: 17 | AW46: 16 | AX46: 16 | AY46: 16 | AZ46: 14 | BA46: 14 | BB46: 14
D47: Building repair and rent | E47: 8 | F47: 5 | G47: 6.8 | K47: 8 | L47: 5 | N47: =IF(E47=K47,0,1) -> 0 | O47: =IF(F47=L47,0,1) -> 0 | T47: 17039041 | U47: 178 | V47: 134 | W47: 197 | X47: 219 | Y47: 182 | AA47: Henry | AB47: 17073 | AD47: Jasper | AE47: 18073 | AG47: Henry | AH47: 17073 | AJ47: 37 | AK47: Building repair and rent | AM47: 11 | AN47: 8 | AO47: =AN47 -> 8 | AP47: =AO47 -> 8 | AQ47: 5 | AR47: 5 | AS47: 5 | AU47: Building repair and rent | AV47: 5 | AW47: 5 | AX47: 5 | AY47: 5 | AZ47: 5 | BA47: 5 | BB47: 5
D48: Building depreciation | E48: 7 | F48: 10 | G48: 8.2 | K48: 7 | L48: 10 | N48: 0 | O48: 0 | T48: 17039081 | U48: 56 | V48: 55 | W48: 59 | X48: 63 | Y48: 58 | AA48: Iroquois | AB48: 17075 | AD48: Jay | AE48: 18075 | AG48: Iroquois | AH48: 17075 | AJ48: 38 | AK48: Building depreciation | AM48: 18 | AN48: 7 | AO48: =AN48 -> 7 | AP48: =AO48 -> 7 | AQ48: 10 | AR48: 10 | AS48: 10 | AU48: Building depreciation | AV48: 10 | AW48: 10 | AX48: 10 | AY48: 10 | AZ48: 10 | BA48: 10 | BB48: 10
D49: Insurance | E49: 10 | F49: 10 | G49: 10 | K49: 10 | L49: 10 | N49: 0 | O49: 0 | T49: 17041041 | U49: 154 | V49: 118 | W49: 187 | X49: 222 | Y49: 170 | AA49: Jackson | AB49: 17077 | AD49: Jefferson | AE49: 18077 | AG49: Jackson | AH49: 17077 | AJ49: 39 | AK49: Insurance | AM49: 13 | AN49: 10 | AO49: =AN49 -> 10 | AP49: 10 | AQ49: 10 | AR49: 10 | AS49: 10 | AU49: Insurance | AV49: 9 | AW49: 10 | AX49: 10 | AY49: 10 | AZ49: 10 | BA49: 10 | BB49: 10
D50: Misc. | E50: 8 | F50: 9 | G50: 8.4 | K50: 8 | L50: 9 | N50: 0 | O50: 0 | T50: 17041081 | U50: 50 | V50: 45 | W50: 51 | X50: 66 | Y50: 53 | AA50: Jasper | AB50: 17079 | AD50: Jennings | AE50: 18079 | AG50: Jasper | AH50: 17079 | AJ50: 40 | AK50: Misc. | AM50: 8 | AN50: 8 | AO50: 8 | AP50: 8 | AQ50: 10 | AR50: 7 | AS50: 5 | AU50: Misc. | AV50: 10 | AW50: 9 | AX50: 9 | AY50: 9 | AZ50: 10 | BA50: 7 | BB50: 5
D51: Interest | E51: 12 | F51: 10 | G51: 11.2 | K51: 12 | L51: 10 | N51: 0 | O51: 0 | T51: 17043041 | U51: 157 | V51: 165 | W51: 179 | X51: 199 | Y51: 175 | AA51: Jefferson | AB51: 17081 | AD51: Johnson | AE51: 18081 | AG51: Jefferson | AH51: 17081 | AJ51: 41 | AK51: Interest | AM51: 18 | AN51: 12 | AO51: =AN51+1 -> 13 | AP51: =AO51+1 -> 14 | AQ51: 12 | AR51: 12 | AS51: 11 | AU51: Interest | AV51: 14 | AW51: 10 | AX51: 10 | AY51: 10 | AZ51: 7 | BA51: 7 | BB51: 6
D52: Other overhead expenses | E52: 0 | F52: 0 | G52: 0 | K52: 0 | L52: 0 | N52: 0 | O52: 0 | T52: 17043081 | U52: 49 | V52: 66 | W52: 43 | X52: 56 | Y52: 54 | AA52: Jersey | AB52: 17083 | AD52: Knox | AE52: 18083 | AG52: Jersey | AH52: 17083 | AJ52: 42 | AK52: Other overhead expenses | AM52: 0 | AN52: 0 | AO52: 0 | AP52: 0 | AQ52: 0 | AR52: 0 | AS52: 0 | AU52: Other overhead expenses | AV52: 0 | AW52: 0 | AX52: 0 | AY52: 0 | AZ52: 0 | BA52: 0 | BB52: 0
C53: Total overhead expenses | E53: =SUM(E46:E52) -> 64 | F53: =SUM(F46:F52) -> 60 | G53: =SUM(G46:G52) -> 62.4 | T53: 17045041 | U53: 154 | V53: 118 | W53: 186 | X53: 200 | Y53: 165 | AA53: Jo Daviess | AB53: 17085 | AD53: Kosciusko | AE53: 18085 | AG53: Jo Daviess | AH53: 17085 | AJ53: 43
T54: 17045081 | U54: 54 | V54: 39 | W54: 57 | X54: 61 | Y54: 53 | AA54: Johnson | AB54: 17087 | AD54: LaGrange | AE54: 18087 | AG54: Johnson | AH54: 17087 | AJ54: 44
C55: Total expenses | E55: =E35+E44+E53 -> 572 | F55: =F35+F44+F53 -> 375 | G55: =G35+G44+G53 -> 493.2 | T55: 17047041 | U55: 136 | V55: 86 | W55: 149 | X55: 166 | Y55: 134 | AA55: Kane | AB55: 17089 | AD55: Lake | AE55: 18089 | AG55: Kane | AH55: 17089 | AJ55: 45
T56: 17047081 | U56: 43 | V56: 35 | W56: 42 | X56: 53 | Y56: 43 | AA56: Kankakee | AB56: 17091 | AD56: LaPorte | AE56: 18091 | AG56: Kankakee | AH56: 17091 | AJ56: 46
C57: Operator and land return | E57: =E25-E55 -> 229.9 | F57: =F25-F55 -> 206 | G57: 220.34 | T57: 17049041 | U57: 153 | V57: 102 | W57: 172 | X57: 187 | Y57: 154 | AA57: Kendall | AB57: 17093 | AD57: Lawrence | AE57: 18093 | AG57: Kendall | AH57: 17093 | AJ57: 47
T58: 17049081 | U58: 44 | V58: 42 | W58: 45 | X58: 59 | Y58: 48 | AA58: Knox | AB58: 17095 | AD58: Madison | AE58: 18095 | AG58: Knox | AH58: 17095 | AJ58: 48
D59: Cash rent | E59: =K59 -> 286 | F59: =E59 -> 286 | G59: =F59 -> 286 | K59: 286 | L59: =K59 -> 286 | N59: =IF(E59=K59,0,1) -> 0 | O59: =IF(F59=L59,0,1) -> 0 | T59: 17051041 | U59: 133 | V59: 94 | W59: 161 | X59: 178 | Y59: 142 | AA59: Lake | AB59: 17097 | AD59: Marion | AE59: 18097 | AG59: Lake | AH59: 17097 | AJ59: 49 | AK59: Cash rent | AM59: 258 | AN59: 286 | AO59: 236 | AP59: 158 | AQ59: 295 | AR59: 235 | AS59: 180
D60: Operator labor and equity | E60: =K60 -> 40 | F60: =E60 -> 40 | G60: =F60 -> 40 | K60: 40 | T60: 17051081 | U60: 41 | V60: 35 | W60: 43 | X60: 50 | Y60: 42 | AA60: LaSalle | AB60: 17099 | AD60: Marshall | AE60: 18099 | AG60: LaSalle | AH60: 17099
T61: 17053041 | U61: 137 | V61: 118 | W61: 164 | X61: 198 | Y61: 154 | AA61: Lawrence | AB61: 17101 | AD61: Martin | AE61: 18101 | AG61: Lawrence | AH61: 17101
C62: Farmer net return | E62: =E25-E55-E59-E60 -> -96.1 | F62: =F25-F55-F59-F60 -> -120 | G62: =G25-G55-G59-G60 -> -105.66 | T62: 17053081 | U62: 44 | V62: 41 | W62: 48 | X62: 58 | Y62: 48 | AA62: Lee | AB62: 17103 | AD62: Miami | AE62: 18103 | AG62: Lee | AH62: 17103
T63: 17055041 | U63: 116 | V63: 84 | W63: 163 | X63: 158 | Y63: 130 | AA63: Livingston | AB63: 17105 | AD63: Monroe | AE63: 18105 | AG63: Livingston | AH63: 17105
T64: 17055081 | U64: 32 | V64: 27 | W64: 41 | X64: 44 | Y64: 36 | AA64: Logan | AB64: 17107 | AD64: Montgomery | AE64: 18107 | AG64: Logan | AH64: 17107
C65: Breakeven Cash Rents | G65: $/acre | T65: 17057041 | U65: 151 | V65: 120 | W65: 168 | X65: 191 | Y65: 158 | AA65: McDonough | AB65: 17109 | AD65: Morgan | AE65: 18109 | AG65: McDonough | AH65: 17109
D66: Cash costs (non-land costs - depreciation) | G66: =G25-G55+G42+G48 -> 295.14 | T66: 17057081 | U66: 50 | V66: 45 | W66: 50 | X66: 53 | Y66: 50 | AA66: McHenry | AB66: 17111 | AD66: Newton | AE66: 18111 | AG66: McHenry | AH66: 17111
D67: Non-land costs | G67: =G66-G42-G48 -> 220.34 | T67: 17059041 | U67: 144 | V67: 102 | W67: 188 | X67: 187 | Y67: 155 | AA67: McLean | AB67: 17113 | AD67: Noble | AE67: 18113 | AG67: McLean | AH67: 17113
D68: Non-land costs plus operator labor and equity | G68: =G67-G60 -> 180.34 | T68: 17059081 | U68: 41 | V68: 35 | W68: 46 | X68: 50 | Y68: 43 | AA68: Macon | AB68: 17115 | AD68: Ohio | AE68: 18115 | AG68: Macon | AH68: 17115
T69: 17061041 | U69: 158 | V69: 113 | W69: 166 | X69: 197 | Y69: 159 | AA69: Macoupin | AB69: 17117 | AD69: Orange | AE69: 18117 | AG69: Macoupin | AH69: 17117
C70: Breakeven Prices | E70: $/bushel | F70: $/bushel | T70: 17061081 | U70: 47 | V70: 49 | W70: 48 | X70: 53 | Y70: 49 | AA70: Madison | AB70: 17119 | AD70: Owen | AE70: 18119 | AG70: Madison | AH70: 17119
D71: Cash non-land costs | E71: =(E25-E42-E48)/E15 -> 3.666161616 | F71: =(F25-F42-F48)/F15 -> 8.912280702 | T71: 17063041 | U71: 155 | V71: 119 | W71: 192 | X71: 204 | Y71: 168 | AA71: Marion | AB71: 17121 | AD71: Parke | AE71: 18121 | AG71: Marion | AH71: 17121
D72: Cash non-land + cash rent | E72: =(E55+E59-E48-E42)/E15 -> 3.949494949 | F72: =(F55+F59-F48-F42)/F15 -> 10.31578947
D73: Non-land costs + cash rent | E73: =(E55+E59-SUM(E22:E24))/E15 -> 4.333333333 | F73: =(F55+F59-SUM(F22:F24))/F15 -> 11.40350877 | T73: 17063081 | U73: 50 | V73: 44 | W73: 56 | X73: 58 | Y73: 52 | AA73: Marshall | AB73: 17123 | AD73: Perry | AE73: 18123 | AG73: =IF($E$79=$AC$4,AA73,AD73) -> Marshall | AH73: =IF($AC$4=$E$79,AB73,AE73) -> 17123
D74: All costs included | E74: =(E55+E59+E60)/E15 -> 4.535353535 | F74: =(F55+F59+F60)/F15 -> 12.29824561 | T74: 17065041 | U74: 120 | V74: 88 | W74: 166 | X74: 197 | Y74: 143 | AA74: Mason | AB74: 17125 | AD74: Pike | AE74: 18125 | AG74: Mason | AH74: 17125
T75: 17065081 | U75: 32 | V75: 28 | W75: 40 | X75: 46 | Y75: 37 | AA75: Massac | AB75: 17127 | AD75: Porter | AE75: 18127 | AG75: Massac | AH75: 17127
R76: 0.5 | S76: ARC | T76: 17067041 | U76: 134 | V76: 133 | W76: 177 | X76: 217 | Y76: 165 | AA76: Menard | AB76: 17129 | AD76: Posey | AE76: 18129 | AG76: Menard | AH76: 17129
C77: Insurance and Program Input for 2016 | R77: 0.55 | S77: PLC | T77: 17067081 | U77: 45 | V77: 48 | W77: 47 | X77: 52 | Y77: 48 | AA77: Mercer | AB77: 17131 | AD77: Pulaski | AE77: 18131 | AG77: Mercer | AH77: 17131
C78: Click "Use Defaults to Bring in Defaults for State/County Choice | R78: 0.6 | T78: 17069041 | U78: 109 | V78: 84 | W78: 148 | X78: 176 | Y78: 129 | AA78: Monroe | AB78: 17133 | AD78: Putnam | AE78: 18133 | AG78: Monroe | AH78: 17133
D79: State | E79: Illinois | R79: 0.65 | T79: 17069081 | U79: 26 | V79: 29 | W79: 34 | X79: 38 | Y79: 32 | AA79: Montgomery | AB79: 17135 | AD79: Randolph | AE79: 18135 | AG79: Montgomery | AH79: 17135
D80: County | E80: McLean | R80: 0.7 | T80: 17071041 | U80: 159 | V80: 162 | W80: 174 | X80: 206 | Y80: 175 | AA80: Morgan | AB80: 17137 | AD80: Ripley | AE80: 18137 | AG80: Morgan | AH80: 17137
B81: =IF(M81=0,"","Input differs from defaults. Hit 'Use Defaults' to use default entries.") ->  | M81: =SUM(M84:N104) -> 0 | R81: 0.75 | T81: 17071081 | U81: 55 | V81: 55 | W81: 50 | X81: 52 | Y81: 53 | AA81: Moultrie | AB81: 17139 | AD81: Rush | AE81: 18139 | AG81: Moultrie | AH81: 17139
E82: =E11 -> Corn | F82: =F11 -> Soybeans | R82: 0.8 | T82: 17073041 | U82: 174 | V82: 139 | W82: 184 | X82: 192 | Y82: 172 | AA82: Ogle | AB82: 17141 | AD82: St. Joseph | AE82: 18141 | AG82: Ogle | AH82: 17141
C83: Crop Insurance | R83: 0.85 | T83: 17073081 | U83: 60 | V83: 51 | W83: 54 | X83: 57 | Y83: 56 | AA83: Peoria | AB83: 17143 | AD83: Scott | AE83: 18143 | AG83: Peoria | AH83: 17143
D84: RP coverage level | E84: =K84 -> 0.85 | F84: 0.85 | K84: 0.85 | L84: 0.85 | M84: =IF(E84=K84,0,1) -> 0 | N84: 0 | T84: 17075041 | U84: 155 | V84: 120 | W84: 174 | X84: 184 | Y84: 158 | AA84: Perry | AB84: 17145 | AD84: Shelby | AE84: 18145 | AG84: Perry | AH84: 17145
D85: TA-APH yield | E85: 183 | F85: 59 | K85: =ROUND(Z3,) -> 183 | L85: =ROUND(Z4,) -> 59 | M85: 0 | N85: 0 | T85: 17075081 | U85: 45 | V85: 45 | W85: 48 | X85: 57 | Y85: 49 | AA85: Piatt | AB85: 17147 | AD85: Spencer | AE85: 18147 | AG85: Piatt | AH85: 17147
D86: Projected price | E86: 4.35 | F86: 10.3 | K86: 4.35 | L86: =AV16 -> 10.3 | M86: 0 | N86: 0 | T86: 17077041 | U86: 118 | V86: 95 | W86: 171 | X86: 167 | Y86: 138 | AA86: Pike | AB86: 17149 | AD86: Starke | AE86: 18149 | AG86: Pike | AH86: 17149
T87: 17077081 | U87: 33 | V87: 30 | W87: 39 | X87: 46 | Y87: 37 | AA87: Pope | AB87: 17151 | AD87: Steuben | AE87: 18151 | AG87: Pope | AH87: 17151
C88: Program on farm | E88: =K88 -> ARC | F88: =L88 -> ARC | K88: ARC | L88: ARC | M88: =IF(E88=K88,0,1) -> 0 | N88: =IF(F88=L88,0,1) -> 0 | T88: 17079041 | U88: 146 | V88: 100 | W88: 146 | X88: 184 | Y88: 144 | AA88: Pulaski | AB88: 17153 | AD88: Sullivan | AE88: 18153 | AG88: Pulaski | AH88: 17153
C89: Program yield (only for PLC) | E89: =K89 -> 147 | F89: =L89 -> 48 | K89: =ROUND(AVERAGE(U3:Y3)*0.85,) -> 147 | L89: =ROUND(AVERAGE(U4:Y4)*0.85,) -> 48 | M89: =IF(E89=K89,0,1) -> 0 | N89: =IF(F89=L89,0,1) -> 0 | T89: 17079081 | U89: 42 | V89: 39 | W89: 40 | X89: 55 | Y89: 44 | AA89: Putnam | AB89: 17155 | AD89: Switzerland | AE89: 18155 | AG89: Putnam | AH89: 17155
T90: 17081041 | U90: 110 | V90: 80 | W90: 151 | X90: 162 | Y90: 126 | AA90: Randolph | AB90: 17157 | AD90: Tippecanoe | AE90: 18157 | AG90: Randolph | AH90: 17157
C91: County Yields 2011 | E91: =K91 -> 160 | F91: 56 | K91: =TRANSPOSE(U3:Y3) -> 160 | L91: =TRANSPOSE(U4:Y4) -> 56 | M91: =IF(E91=K91,0,1) -> 0 | N91: =IF(F91=L91,0,1) -> 0 | T91: 17081081 | U91: 29 | V91: 25 | W91: 38 | X91: 45 | Y91: 34 | AA91: Richland | AB91: 17159 | AD91: Tipton | AE91: 18159 | AG91: Richland | AH91: 17159
D92: 2012 | E92: 125 | F92: 52 | K92: 125 | L92: 52 | M92: =IF(E92=K92,0,1) -> 0 | N92: =IF(F92=L92,0,1) -> 0 | T92: 17083041 | U92: 149 | V92: 113 | W92: 182 | X92: 198 | Y92: 161 | AA92: Rock Island | AB92: 17161 | AD92: Union | AE92: 18161 | AG92: Rock Island | AH92: 17161
D93: 2013 | E93: 189 | F93: 56 | K93: 189 | L93: 56 | M93: 0 | N93: 0 | T93: 17083081 | U93: 47 | V93: 44 | W93: 51 | X93: 51 | Y93: 48 | AA93: St. Clair | AB93: 17163 | AD93: Vanderburgh | AE93: 18163 | AG93: St. Clair | AH93: 17163
D94: 2014 | E94: 217 | F94: 63 | K94: 217 | L94: 63 | M94: 0 | N94: 0 | T94: 17085041 | U94: 171 | V94: 113 | W94: 170 | X94: 176 | Y94: 158 | AA94: Saline | AB94: 17165 | AD94: Vermillion | AE94: 18165 | AG94: Saline | AH94: 17165
D95: 2015 | E95: 173 | F95: 57 | K95: 173 | L95: 57 | M95: 0 | N95: 0 | T95: 17085081 | U95: 61 | V95: 35 | W95: 49 | X95: 55 | Y95: 50 | AA95: Sangamon | AB95: 17167 | AD95: Vigo | AE95: 18167 | AG95: Sangamon | AH95: 17167
T96: 17087041 | U96: 127 | V96: 82 | W96: 154 | X96: 141 | Y96: 126 | AA96: Schuyler | AB96: 17169 | AD96: Wabash | AE96: 18169 | AG96: Schuyler | AH96: 17169
C97: Market Year Average Prices 2011 | E97: =K97 -> 6.22 | F97: 12.5 | K97: 6.22 | L97: 12.5 | M97: =IF(E97=K97,0,1) -> 0 | N97: =IF(F97=L97,0,1) -> 0 | T97: 17087081 | U97: 37 | V97: 28 | W97: 45 | X97: 40 | Y97: 38 | AA97: Scott | AB97: 17171 | AD97: Warren | AE97: 18171 | AG97: Scott | AH97: 17171
D98: 2012 | E98: 6.89 | F98: 14.4 | K98: 6.89 | L98: 14.4 | M98: 0 | N98: 0 | T98: 17089041 | U98: 175 | V98: 140 | W98: 191 | X98: 182 | Y98: 172 | AA98: Shelby | AB98: 17173 | AD98: Warrick | AE98: 18173 | AG98: Shelby | AH98: 17173
D99: 2013 | E99: 4.46 | F99: 13 | K99: 4.46 | L99: 13 | M99: 0 | N99: 0 | T99: 17089081 | U99: 57 | V99: 46 | W99: 56 | X99: 57 | Y99: 54 | AA99: Stark | AB99: 17175 | AD99: Washington | AE99: 18175 | AG99: Stark | AH99: 17175
D100: 2014 | E100: 3.65 | F100: 10.05 | K100: 3.65 | L100: 10.05 | M100: 0 | N100: 0 | T100: 17091041 | U100: 153 | V100: 119 | W100: 172 | X100: 171 | Y100: 154 | AA100: Stephenson | AB100: 17177 | AD100: Wayne | AE100: 18177 | AG100: Stephenson | AH100: 17177
D101: 2015 | E101: 3.9 | F101: 9.75 | K101: 3.9 | L101: 9.75 | M101: 0 | N101: 0 | T101: 17091081 | U101: 48 | V101: 44 | W101: 46 | X101: 53 | Y101: 48 | AA101: Tazewell | AB101: 17179 | AD101: Wells | AE101: 18179 | AG101: Tazewell | AH101: 17179
T102: 17093041 | U102: 165 | V102: 111 | W102: 182 | X102: 173 | Y102: 158 | AA102: Union | AB102: 17181 | AD102: White | AE102: 18181 | AG102: Union | AH102: 17181
C103: Program acres | E103: =K103 -> 0.6 | F103: =L103 -> 0.4 | K103: =E14 -> 0.6 | L103: =1-K103 -> 0.4 | M103: =IF(E103=K103,0,1) -> 0 | N103: =IF(F103=L103,0,1) -> 0 | T103: 17093081 | U103: 54 | V103: 43 | W103: 51 | X103: 59 | Y103: 52 | AA103: Vermilion | AB103: 17183 | AD103: Whitley | AE103: 18183 | AG103: Vermilion | AH103: 17183
C104: Farm yield minus county yield | E104: =K104 -> -5 | F104: =L104 -> -3 | K104: -5 | L104: -3 | M104: 0 | N104: 0 | T104: 17095041 | U104: 169 | V104: 160 | W104: 190 | X104: 199 | Y104: 180 | AA104: Wabash | AB104: 17185 | AG104: Wabash | AH104: 17185
T105: 17095081 | U105: 62 | V105: 56 | W105: 55 | X105: 57 | Y105: 58 | AA105: Warren | AB105: 17187 | AG105: Warren | AH105: 17187
C106: ARC Benchmark Yield | E106: =ROUND((SUM(E91:E95)-MAX(E91:E95)-MIN(E91:E95))/3,1) -> 174 | F106: =ROUND((SUM(F91:F95)-MAX(F91:F95)-MIN(F91:F95))/3,1) -> 56.3 | T106: 17097041 | U106: 151 | V106: 114 | W106: 153 | X106: 124 | Y106: 136 | AA106: Washington | AB106: 17189 | AG106: Washington | AH106: 17189
C107: ARC Benchmark Price | E107: =(SUM(E97:E101)-MAX(E97:E101)-MIN(E97:E101))/3 -> 4.86 | F107: =(SUM(F97:F101)-MAX(F97:F101)-MIN(F97:F101))/3 -> 11.85 | T107: 17097081 | U107: 45 | V107: 40 | W107: 44 | X107: 45 | Y107: 44 | AA107: Wayne | AB107: 17191 | AG107: Wayne | AH107: 17191
C108: ARC Guarantee | E108: =E106*E107*0.86 -> 727.2504 | F108: =F106*F107*0.86 -> 573.7533 | T108: 17099041 | U108: 177 | V108: 134 | W108: 187 | X108: 194 | Y108: 173 | AA108: White | AB108: 17193 | AG108: White | AH108: 17193
C109: 2015 ARC Payment | E109: =0.85*MIN(MAX(0,E108-E18*(E15+E104)),E106*E107*0.1) -> 0 | F109: =0.85*MIN(MAX(0,F108-F18*(F15+F104)),F106*F107*0.1) -> 28.690305 | T109: 17099081 | U109: 59 | V109: 49 | W109: 54 | X109: 60 | Y109: 56 | AA109: Whiteside | AB109: 17195 | AG109: Whiteside | AH109: 17195
T110: 17101041 | U110: 142 | V110: 92 | W110: 147 | X110: 176 | Y110: 139 | AA110: Will | AB110: 17197 | AG110: Will | AH110: 17197
C111: PLC payment | E111: =0.85*MAX(0,3.75-E18)*E89 -> 0 | F111: =0.85*MAX(0,8.4-F18)*F89 -> 0 | T111: 17101081 | U111: 45 | V111: 34 | W111: 41 | X111: 45 | Y111: 41 | AA111: Williamson | AB111: 17199 | AG111: Williamson | AH111: 17199
T112: 17103041 | U112: 171 | V112: 142 | W112: 171 | X112: 180 | Y112: 166 | AA112: Winnebago | AB112: 17201 | AG112: Winnebago | AH112: 17201
T113: 17103081 | U113: 59 | V113: 52 | W113: 53 | X113: 59 | Y113: 56 | AA113: Woodford | AB113: 17203 | AG113: Woodford | AH113: 17203
T114: 17105041 | U114: 156 | V114: 118 | W114: 179 | X114: 210 | Y114: 166
T115: 17105081 | U115: 52 | V115: 41 | W115: 55 | X115: 59 | Y115: 52
T116: 17107041 | U116: 173 | V116: 125 | W116: 198 | X116: 229 | Y116: 181
T117: 17107081 | U117: 55 | V117: 47 | W117: 56 | X117: 64 | Y117: 56
T118: 17109041 | U118: 167 | V118: 138 | W118: 187 | X118: 209 | Y118: 175
T119: 17109081 | U119: 58 | V119: 50 | W119: 53 | X119: 54 | Y119: 54
T120: 17111041 | U120: 176 | V120: 121 | W120: 159 | X120: 179 | Y120: 159
T121: 17111081 | U121: 51 | V121: 42 | W121: 49 | X121: 56 | Y121: 50
T122: 17113041 | U122: 160 | V122: 125 | W122: 189 | X122: 217 | Y122: 173
T123: 17113081 | U123: 56 | V123: 52 | W123: 56 | X123: 63 | Y123: 57
T124: 17115041 | U124: 153 | V124: 125 | W124: 193 | X124: 234 | Y124: 176
T125: 17115081 | U125: 47 | V125: 44 | W125: 55 | X125: 67 | Y125: 53
T126: 17117041 | U126: 130 | V126: 111 | W126: 168 | X126: 197 | Y126: 152
T127: 17117081 | U127: 40 | V127: 46 | W127: 48 | X127: 58 | Y127: 48
T128: 17119041 | U128: 118 | V128: 104 | W128: 164 | X128: 189 | Y128: 144
T129: 17119081 | U129: 35 | V129: 36 | W129: 42 | X129: 53 | Y129: 42
T130: 17121041 | U130: 138 | V130: 88 | W130: 159 | X130: 182 | Y130: 142
T131: 17121081 | U131: 38 | V131: 27 | W131: 41 | X131: 51 | Y131: 39
T132: 17123041 | U132: 178 | V132: 124 | W132: 191 | X132: 205 | Y132: 175
T133: 17123081 | U133: 56 | V133: 45 | W133: 53 | X133: 60 | Y133: 54
T134: 17125041 | U134: 164 | V134: 111 | W134: 179 | X134: 194 | Y134: 162
T135: 17125081 | U135: 46 | V135: 30 | W135: 43 | X135: 53 | Y135: 43
T136: 17127041 | U136: 129 | V136: 79 | W136: 170 | X136: 163 | Y136: 135
T137: 17127081 | U137: 39 | V137: 31 | W137: 49 | X137: 45 | Y137: 41
T138: 17129041 | U138: 169 | V138: 117 | W138: 197 | X138: 221 | Y138: 176
T139: 17129081 | U139: 51 | V139: 41 | W139: 54 | X139: 60 | Y139: 52
T140: 17131041 | U140: 162 | V140: 180 | W140: 176 | X140: 192 | Y140: 178
T141: 17131081 | U141: 53 | V141: 56 | W141: 47 | X141: 57 | Y141: 53
T142: 17133041 | U142: 115 | V142: 97 | W142: 145 | X142: 180 | Y142: 134
T143: 17133081 | U143: 34 | V143: 39 | W143: 33 | X143: 46 | Y143: 38
T144: 17135041 | U144: 138 | V144: 113 | W144: 182 | X144: 203 | Y144: 159
T145: 17135081 | U145: 44 | V145: 42 | W145: 49 | X145: 57 | Y145: 48
T146: 17137041 | U146: 157 | V146: 127 | W146: 191 | X146: 221 | Y146: 174
T147: 17137081 | U147: 50 | V147: 46 | W147: 55 | X147: 59 | Y147: 53
T148: 17139041 | U148: 156 | V148: 121 | W148: 181 | X148: 222 | Y148: 170
T149: 17139081 | U149: 48 | V149: 45 | W149: 56 | X149: 64 | Y149: 53
T150: 17141041 | U150: 179 | V150: 141 | W150: 189 | X150: 192 | Y150: 175
T151: 17141081 | U151: 60 | V151: 50 | W151: 53 | X151: 60 | Y151: 56
T152: 17143041 | U152: 168 | V152: 160 | W152: 178 | X152: 206 | Y152: 178
T153: 17143081 | U153: 58 | V153: 54 | W153: 50 | X153: 57 | Y153: 55
T154: 17145041 | U154: 114 | V154: 77 | W154: 135 | X154: 142 | Y154: 117
T155: 17145081 | U155: 33 | V155: 24 | W155: 33 | X155: 41 | Y155: 33
T156: 17147041 | U156: 157 | V156: 130 | W156: 187 | X156: 233 | Y156: 177
T157: 17147081 | U157: 53 | V157: 51 | W157: 57 | X157: 69 | Y157: 58
T158: 17149041 | U158: 151 | V158: 111 | W158: 164 | X158: 198 | Y158: 156
T159: 17149081 | U159: 44 | V159: 44 | W159: 44 | X159: 50 | Y159: 46
T160: 17151041 | U160: 125 | V160: 82 | W160: 169 | X160: 158 | Y160: 134
T161: 17151081 | U161: 37 | V161: 35 | W161: 44 | X161: 50 | Y161: 42
T162: 17153041 | U162: 137 | V162: 97 | W162: 170 | X162: 177 | Y162: 145
T163: 17153081 | U163: 40 | V163: 37 | W163: 44 | X163: 46 | Y163: 42
T164: 17155041 | U164: 176 | V164: 134 | W164: 187 | X164: 191 | Y164: 172
T165: 17155081 | U165: 58 | V165: 53 | W165: 55 | X165: 59 | Y165: 56
T166: 17157041 | U166: 109 | V166: 86 | W166: 147 | X166: 178 | Y166: 130
T167: 17157081 | U167: 36 | V167: 34 | W167: 38 | X167: 45 | Y167: 38
T168: 17159041 | U168: 127 | V168: 85 | W168: 145 | X168: 175 | Y168: 133
T169: 17159081 | U169: 35 | V169: 26 | W169: 36 | X169: 52 | Y169: 37
T170: 17161041 | U170: 176 | V170: 159 | W170: 182 | X170: 184 | Y170: 175
T171: 17161081 | U171: 59 | V171: 50 | W171: 45 | X171: 54 | Y171: 52
T172: 17163041 | U172: 128 | V172: 100 | W172: 158 | X172: 171 | Y172: 139
T173: 17163081 | U173: 36 | V173: 31 | W173: 39 | X173: 49 | Y173: 39
T174: 17165041 | U174: 132 | V174: 92 | W174: 171 | X174: 174 | Y174: 142
T175: 17165081 | U175: 37 | V175: 29 | W175: 46 | X175: 46 | Y175: 40
T176: 17167041 | U176: 165 | V176: 131 | W176: 198 | X176: 225 | Y176: 180
T177: 17167081 | U177: 56 | V177: 49 | W177: 56 | X177: 63 | Y177: 56
T178: 17169041 | U178: 144 | V178: 115 | W178: 168 | X178: 202 | Y178: 157
T179: 17169081 | U179: 45 | V179: 37 | W179: 49 | X179: 52 | Y179: 46
T180: 17171041 | U180: 145 | V180: 119 | W180: 168 | X180: 200 | Y180: 158
T181: 17171081 | U181: 44 | V181: 43 | W181: 52 | X181: 54 | Y181: 48
T182: 17173041 | U182: 146 | V182: 114 | W182: 177 | X182: 204 | Y182: 160
T183: 17173081 | U183: 44 | V183: 46 | W183: 48 | X183: 56 | Y183: 49
T184: 17175041 | U184: 181 | V184: 148 | W184: 190 | X184: 205 | Y184: 181
T185: 17175081 | U185: 59 | V185: 51 | W185: 56 | X185: 58 | Y185: 56
T186: 17177041 | U186: 181 | V186: 113 | W186: 179 | X186: 187 | Y186: 165
T187: 17177081 | U187: 59 | V187: 43 | W187: 54 | X187: 57 | Y187: 53
T188: 17179041 | U188: 173 | V188: 133 | W188: 176 | X188: 221 | Y188: 176
T189: 17179081 | U189: 57 | V189: 51 | W189: 53 | X189: 61 | Y189: 56
T190: 17181041 | U190: 108 | V190: 102 | W190: 162 | X190: 183 | Y190: 139
T191: 17181081 | U191: 36 | V191: 29 | W191: 45 | X191: 52 | Y191: 41
T192: 17183041 | U192: 148 | V192: 119 | W192: 177 | X192: 202 | Y192: 162
T193: 17183081 | U193: 45 | V193: 46 | W193: 53 | X193: 62 | Y193: 52
T194: 17185041 | U194: 138 | V194: 96 | W194: 158 | X194: 178 | Y194: 143
T195: 17185081 | U195: 45 | V195: 41 | W195: 45 | X195: 52 | Y195: 46
T196: 17187041 | U196: 177 | V196: 164 | W196: 186 | X196: 214 | Y196: 185
T197: 17187081 | U197: 59 | V197: 57 | W197: 54 | X197: 58 | Y197: 57
T198: 17189041 | U198: 117 | V198: 90 | W198: 158 | X198: 176 | Y198: 135
T199: 17189081 | U199: 31 | V199: 25 | W199: 36 | X199: 48 | Y199: 35
T200: 17191041 | U200: 113 | V200: 85 | W200: 143 | X200: 183 | Y200: 131
T201: 17191081 | U201: 34 | V201: 27 | W201: 40 | X201: 51 | Y201: 38
T202: 17193041 | U202: 139 | V202: 93 | W202: 179 | X202: 195 | Y202: 152
... 195 more rows

Sheet longRun
R5: Corn % | S5: =budgets!E14/SUM(budgets!E14:F14) -> 0.6
C6: Input -- Prices and Yields for Next Five Years | R6: bean % | S6: =1-S5 -> 0.4
D8: Yields for 2016 through 2020
E10: Bu Increase
E11: per Year | F11: 2016 | G11: 2017 | H11: 2018 | I11: 2019 | J11: 2020
D12: Corn | E12: 2 | F12: =budgets!E15 -> 198 | G12: =F12+$E$12 -> 200 | H12: =G12+$E$12 -> 202 | I12: =H12+$E$12 -> 204 | J12: =I12+$E$12 -> 206
D13: Soybeans | E13: 0.5 | F13: =budgets!F15 -> 57 | G13: =F13+$E$13 -> 57.5 | H13: =G13+$E$13 -> 58 | I13: 58.5 | J13: 59
D16: Corn Price Scenarios
F18: Year
D19: Price Scenario | F19: 2016 | G19: 2017 | H19: =G19+1 -> 2018 | I19: =H19+1 -> 2019 | J19: =I19+1 -> 2020
D22: FAPRI | F22: 3.97 | G22: 4.02 | H22: 4.15 | I22: 4.2 | J22: 4.2
D23: Long-run | F23: 4.6 | G23: =F23 -> 4.6 | H23: =G23 -> 4.6 | I23: =H23 -> 4.6 | J23: =I23 -> 4.6
D24: Low | F24: 3.5 | G24: 3.5 | H24: 3.5 | I24: 3.5 | J24: 3.5
D25: High | F25: 4.8 | G25: 4.8 | H25: 4.8 | I25: 4.8 | J25: 4.8
D26: User-defined | F26: 4.2 | G26: 4.2 | H26: 4.2 | I26: 4.2 | J26: 4.2
D28: Price scenario | F28: User-defined | H28: << this scenario will be used in analysis
D30: Price per bushel | F30: =VLOOKUP($F$28,$D$22:$J$26,3,FALSE) -> 4.2 | G30: =VLOOKUP($F$28,$D$22:$J$26,4,FALSE) -> 4.2 | H30: =VLOOKUP($F$28,$D$22:$J$26,5,FALSE) -> 4.2 | I30: =VLOOKUP($F$28,$D$22:$J$26,6,FALSE) -> 4.2 | J30: =VLOOKUP($F$28,$D$22:$J$26,7,FALSE) -> 4.2
D31: Revenue per acre | F31: =F12*F30 -> 831.6 | G31: =G12*G30 -> 840 | H31: 848.4 | I31: 856.8 | J31: 865.2
D34: Soybean Price Scenarios
F36: Year
D37: Price Scenario | F37: 2016 | G37: 2017 | H37: =G37+1 -> 2018 | I37: =H37+1 -> 2019 | J37: =I37+1 -> 2020
D40: =D22 -> FAPRI | F40: 9.58 | G40: 10 | H40: 10.36 | I40: 10.5 | J40: 10.5
D41: Long-run | F41: 10.5 | G41: =F41 -> 10.5 | H41: =G41 -> 10.5 | I41: =H41 -> 10.5 | J41: =I41 -> 10.5
D42: Low | F42: 9 | G42: 9 | H42: 9 | I42: 9 | J42: 9
D43: High | F43: 10.8 | G43: 10.8 | H43: 10.8 | I43: 10.8 | J43: 10.8
D44: User-defined | F44: =budgets!F18 -> 10 | G44: =F44 -> 10 | H44: =G44 -> 10 | I44: 10 | J44: 10
D46: Price scenario | F46: User-defined | H46: << this scenario will be used in analysis
D48: Price per bushel | F48: =VLOOKUP($F$46,$D$40:$J$44,3,FALSE) -> 10 | G48: =VLOOKUP($F$46,$D$40:$J$44,4,FALSE) -> 10 | H48: =VLOOKUP($F$46,$D$40:$J$44,5,FALSE) -> 10 | I48: =VLOOKUP($F$46,$D$40:$J$44,6,FALSE) -> 10 | J48: =VLOOKUP($F$46,$D$40:$J$44,7,FALSE) -> 10
D49: Revenue per acre | F49: =F48*F13 -> 570 | G49: =G48*G13 -> 575 | H49: 580 | I49: 585 | J49: 590
C52: Costs Changes
E54: Change | F54: 2016 | G54: 2017 | H54: =G54+1 -> 2018 | I54: =H54+1 -> 2019 | J54: =I54+1 -> 2020
E55: Per Year | F55: Costs per acre
D56: Corn | E56: 0 | F56: =budgets!E55 -> 572 | G56: =F56*(1+$E$56) -> 572 | H56: =G56*(1+$E$56) -> 572 | I56: =H56*(1+$E$56) -> 572 | J56: =I56*(1+$E$56) -> 572
D57: Soybean | E57: 0 | F57: =budgets!F55 -> 375 | G57: =F57*(1+$E$57) -> 375 | H57: =G57*(1+$E$57) -> 375 | I57: 375 | J57: 375
C61: Projected Cash Flow Over the Next Five Years
F63: Year
F64: =F54 -> 2016 | G64: =G54 -> 2017 | H64: 2018 | I64: 2019 | J64: 2020
F67: $ per acre
C68: Crop revenue | F68: =ROUND(F31*$S$5+$F49*$S$6,) -> 727 | G68: =ROUND(G31*$S$5+$F49*$S$6,) -> 732 | H68: =ROUND(H31*$S$5+$F49*$S$6,) -> 737 | I68: =ROUND(I31*$S$5+$F49*$S$6,) -> 742 | J68: =ROUND(J31*$S$5+$F49*$S$6,) -> 747
C69: Other revenue | F69: =budgets!$G$22 -> 0 | G69: =budgets!$G$22 -> 0 | H69: =budgets!$G$22 -> 0 | I69: =budgets!$G$22 -> 0 | J69: =budgets!$G$22 -> 0
C70: ARC/PLC payment | F70: =ROUND(F161,0) -> 11 | G70: =ROUND(G161,0) -> 0 | H70: 0 | I70: 0 | J70: 0
C71: Crop insurance | F71: =ROUND(F182,) -> 0 | G71: =ROUND(G182,) -> 0 | H71: 0 | I71: 0 | J71: 0
B72: Total revenue | F72: =SUM(F68:F71) -> 738 | G72: =SUM(G68:G71) -> 732 | H72: 737 | I72: 742 | J72: 747
B74: Total expenses | F74: =ROUND(F56*$S$5+$S$6*F57,) -> 493 | G74: =ROUND(G56*$S$5+$S$6*G57,) -> 493 | H74: =ROUND(H56*$S$5+$S$6*H57,) -> 493 | I74: =ROUND(I56*$S$5+$S$6*I57,) -> 493 | J74: =ROUND(J56*$S$5+$S$6*J57,) -> 493
B76: Operator and land return | F76: =F72-F74 -> 245 | G76: =G72-G74 -> 239 | H76: 244 | I76: 249 | J76: 254
C78: Cash rent | F78: =N78 -> 286 | G78: =N78 -> 286 | H78: =N78 -> 286 | I78: =N78 -> 286 | J78: =N78 -> 286 | N78: =budgets!E59 -> 286
B80: Farmer net income | F80: =F76-F78 -> -41 | G80: =G76-G78 -> -47 | H80: -42 | I80: -37 | J80: -32
C82: Operator labor, equity | F82: =N82 -> 40 | G82: =N82 -> 40 | H82: =N82 -> 40 | I82: =N82 -> 40 | J82: =N82 -> 40 | N82: =budgets!E60 -> 40
B84: Farmer net return | F84: =F80-F82 -> -81 | G84: =G80-G82 -> -87 | H84: -82 | I84: -77 | J84: -72
B87: Break-even rents
C88: Cash costs (no depreciation) | F88: =F72-F74+SUM(F112:F113) -> 319.8 | G88: =G72-G74+SUM(G112:G113) -> 313.8 | H88: =H72-H74+SUM(H112:H113) -> 318.8 | I88: =I72-I74+SUM(I112:I113) -> 323.8 | J88: =J72-J74+SUM(J112:J113) -> 328.8
C89: Non-land costs | F89: =(F72-F74) -> 245 | G89: =(G72-G74) -> 239 | H89: 244 | I89: 249 | J89: 254
C90: All costs included | F90: =(F72-F74-F82) -> 205 | G90: =(G72-G74-G82) -> 199 | H90: 204 | I90: 209 | J90: 214
B93: Working capital analysis
D94: Beginning | E94: $/acre
D95: working cap. | E95: 500
C96: Full Loaded Costs Less Depr and Op Labor | F96: =F72-F74-F78+SUM(F112:F113)+E95 -> 533.8 | G96: =G72-G74-G78+SUM(G112:G113)+F96 -> 561.6 | H96: =H72-H74-H78+SUM(H112:H113)+G96 -> 594.4 | I96: =I72-I74-I78+SUM(I112:I113)+H96 -> 632.2 | J96: =J72-J74-J78+SUM(J112:J113)+I96 -> 675
C97: Full Loaded Costs Less Depreciation | F97: =F72-F74-F78-F82+SUM(F112:F113)+E95 -> 493.8 | G97: =G72-G74-G78-G82+SUM(G112:G113)+F97 -> 481.6 | H97: =H72-H74-H78-H82+SUM(H112:H113)+G97 -> 474.4 | I97: =I72-I74-I78-I82+SUM(I112:I113)+H97 -> 472.2 | J97: =J72-J74-J78-J82+SUM(J112:J113)+I97 -> 475
C98: Full Loaded Cost Less Operator Labor | F98: =F72-F74-F78+E95 -> 459 | G98: =G72-G74-G78+F98 -> 412 | H98: =H72-H74-H78+G98 -> 370 | I98: 333 | J98: 301
C99: All Costs Included | F99: =F72-F74-F78-F82+E95 -> 419 | G99: =G72-G74-G78-G82+F99 -> 332 | H99: =H72-H74-H78-H82+G99 -> 250 | I99: 173 | J99: 101
B101: Working capital to total expenses
C102: All Costs Included | F102: =F99/(F74+F78) -> 0.5378690629 | G102: =G99/(G74+G78) -> 0.4261874198 | H102: 0.3209242619 | I102: 0.2220795892 | J102: 0.1296534018
B106: Rent analysis
D107: Market cash rent | F107: =F78 -> 286 | G107: =G78 -> 286 | H107: =H78 -> 286 | I107: =I78 -> 286 | J107: =J78 -> 286
D108: Equitable cash rent | F108: =F90 -> 205 | G108: =G90 -> 199 | H108: =H90 -> 204 | I108: =I90 -> 209 | J108: =J90 -> 214
D109: Premium | F109: =F107-F108 -> 81 | G109: =G107-G108 -> 87 | H109: =H107-H108 -> 82 | I109: 77 | J109: 72
F112: =(budgets!E42+budgets!E48)*budgets!$E$14 -> 45.6 | G112: =F112*(1+$E$56) -> 45.6 | H112: =G112*(1+$E$56) -> 45.6 | I112: 45.6 | J112: 45.6
F113: =(budgets!$F$48+budgets!$F$42)*budgets!$F$14 -> 29.2 | G113: =F113*(1+$E$57) -> 29.2 | H113: =G113*(1+$E$57) -> 29.2 | I113: 29.2 | J113: 29.2
B114: Corn ARC payment calc
B115: Corn | E115: Year 1 | F115: =budgets!E91 -> 160 | G115: =F116 -> 125 | H115: =G116 -> 189 | I115: =H116 -> 217 | J115: =I116 -> 173
B116: Yields | E116: Year 2 | F116: =budgets!E92 -> 125 | G116: =F117 -> 189 | H116: 217 | I116: 173 | J116: 193
E117: Year 3 | F117: =budgets!E93 -> 189 | G117: 217 | H117: 173 | I117: 193 | J117: 195
E118: Year 4 | F118: =budgets!E94 -> 217 | G118: 173 | H118: 193 | I118: 195 | J118: 197
E119: Year 5 | F119: =budgets!E95 -> 173 | G119: =F12+budgets!$E$104 -> 193 | H119: =G12+budgets!$E$104 -> 195 | I119: =H12+budgets!$E$104 -> 197 | J119: =I12+budgets!$E$104 -> 199
B122: Corn | E122: Year 1 | F122: =budgets!E97 -> 6.22 | G122: =F123 -> 6.89 | H122: =G123 -> 4.46 | I122: 3.65 | J122: 3.9
B123: Prices | E123: Year 2 | F123: =budgets!E98 -> 6.89 | G123: =F124 -> 4.46 | H123: 3.65 | I123: 3.9 | J123: 4.2
E124: Year 3 | F124: =budgets!E99 -> 4.46 | G124: 3.65 | H124: 3.9 | I124: 4.2 | J124: 4.2
E125: Year 4 | F125: =budgets!E100 -> 3.65 | G125: 3.9 | H125: 4.2 | I125: 4.2 | J125: 4.2
E126: Year 5 | F126: =budgets!E101 -> 3.9 | G126: =F30 -> 4.2 | H126: =G30 -> 4.2 | I126: =H30 -> 4.2 | J126: =I30 -> 4.2
B129: Bench yield | F129: =ROUND((SUM(F115:F119)-MIN(F115:F119)-MAX(F115:F119))/3,1) -> 174 | G129: =ROUND((SUM(G115:G119)-MIN(G115:G119)-MAX(G115:G119))/3,1) -> 185 | H129: 192.3 | I129: 195 | J129: 195
B130: Bench price | F130: =ROUND((SUM(F122:F126)-MAX(F122:F126)-MIN(F122:F126))/3,2) -> 4.86 | G130: =ROUND((SUM(G122:G126)-MAX(G122:G126)-MIN(G122:G126))/3,2) -> 4.19 | H130: 4.1 | I130: 4.1 | J130: 4.2
B131: Bench rev | F131: =ROUND(F129*F130,2) -> 845.64 | G131: =ROUND(G129*G130,2) -> 775.15 | H131: 788.43 | I131: 799.5 | J131: 819
B132: ARC pay | F132: =ROUND(MIN(MAX(0,F131*0.86-F30*(F12+budgets!$E$104)),0.1*F131),2) -> 0 | G132: =ROUND(MIN(MAX(0,G131*0.86-G30*(G12+budgets!$E$104)),0.1*G131),2) -> 0 | H132: =ROUND(MIN(MAX(0,H131*0.86-H30*(H12+budgets!$E$104)),0.1*H131),2) -> 0 | I132: =ROUND(MIN(MAX(0,I131*0.86-I30*(I12+budgets!$E$104)),0.1*I131),2) -> 0 | J132: =ROUND(MIN(MAX(0,J131*0.86-J30*(J12+budgets!$E$104)),0.1*J131),2) -> 0
B136: Bean | E136: Year 1 | F136: =budgets!F91 -> 56 | G136: =budgets!G91 -> 0 | H136: =budgets!H91 -> 0 | I136: =budgets!I91 -> 0 | J136: =budgets!J91 -> 0
B137: Yields | E137: Year 2 | F137: =budgets!F92 -> 52 | G137: =budgets!G92 -> 0 | H137: =budgets!H92 -> 0 | I137: =budgets!I92 -> 0 | J137: =budgets!J92 -> 0
E138: Year 3 | F138: =budgets!F93 -> 56 | G138: =budgets!G93 -> 0 | H138: =budgets!H93 -> 0 | I138: =budgets!I93 -> 0 | J138: =budgets!J93 -> 0
E139: Year 4 | F139: =budgets!F94 -> 63 | G139: =budgets!G94 -> 0 | H139: =budgets!H94 -> 0 | I139: =budgets!I94 -> 0 | J139: =budgets!J94 -> 0
E140: Year 5 | F140: =budgets!F95 -> 57 | G140: =budgets!G95 -> 0 | H140: =budgets!H95 -> 0 | I140: =budgets!I95 -> 0 | J140: =budgets!J95 -> 0
B143: Bean | E143: Year 1 | F143: =budgets!F97 -> 12.5 | G143: =budgets!G97 -> 0 | H143: =budgets!H97 -> 0 | I143: =budgets!I97 -> 0 | J143: =budgets!J97 -> 0
B144: Prices | E144: Year 2 | F144: =budgets!F98 -> 14.4 | G144: =budgets!G98 -> 0 | H144: =budgets!H98 -> 0 | I144: =budgets!I98 -> 0 | J144: =budgets!J98 -> 0
E145: Year 3 | F145: =budgets!F99 -> 13 | G145: =budgets!G99 -> 0 | H145: =budgets!H99 -> 0 | I145: =budgets!I99 -> 0 | J145: =budgets!J99 -> 0
E146: Year 4 | F146: =budgets!F100 -> 10.05 | G146: =budgets!G100 -> 0 | H146: =budgets!H100 -> 0 | I146: =budgets!I100 -> 0 | J146: =budgets!J100 -> 0
E147: Year 5 | F147: =budgets!F101 -> 9.75 | G147: =budgets!G101 -> 0 | H147: =budgets!H101 -> 0 | I147: =budgets!I101 -> 0 | J147: =budgets!J101 -> 0
B150: Bench yield | F150: =ROUND((SUM(F136:F140)-MIN(F136:F140)-MAX(F136:F140))/3,1) -> 56.3 | G150: =ROUND((SUM(G136:G140)-MIN(G136:G140)-MAX(G136:G140))/3,1) -> 0 | H150: 0 | I150: 0 | J150: 0
B151: Bench price | F151: =ROUND((SUM(F143:F147)-MAX(F143:F147)-MIN(F143:F147))/3,2) -> 11.85 | G151: =ROUND((SUM(G143:G147)-MAX(G143:G147)-MIN(G143:G147))/3,2) -> 0 | H151: 0 | I151: 0 | J151: 0
B152: Bench rev | F152: =ROUND(F150*F151,2) -> 667.16 | G152: =ROUND(G150*G151,2) -> 0 | H152: 0 | I152: 0 | J152: 0
B153: ARC pay | F153: =ROUND(MIN(MAX(0,F152*0.86-F48*(F13+budgets!$F$104)),F152*0.1)*0.85,2) -> 28.69 | G153: =ROUND(MIN(MAX(0,G152*0.86-G48*(G13+budgets!$F$104)),G152*0.1)*0.85,2) -> 0 | H153: =ROUND(MIN(MAX(0,H152*0.86-H48*(H13+budgets!$F$104)),H152*0.1)*0.85,2) -> 0 | I153: =ROUND(MIN(MAX(0,I152*0.86-I48*(I13+budgets!$F$104)),I152*0.1)*0.85,2) -> 0 | J153: =ROUND(MIN(MAX(0,J152*0.86-J48*(J13+budgets!$F$104)),J152*0.1)*0.85,2) -> 0
B156: PLC
C157: Corn | F157: =MAX(0,3.75-F30)*budgets!$E$89*0.85 -> 0 | G157: =MAX(0,3.75-G30)*budgets!$E$89*0.85 -> 0 | H157: =MAX(0,3.75-H30)*budgets!$E$89*0.85 -> 0 | I157: =MAX(0,3.75-I30)*budgets!$E$89*0.85 -> 0 | J157: =MAX(0,3.75-J30)*budgets!$E$89*0.85 -> 0
C158: Beans | F158: =MAX(0,8.4-F48)*budgets!$F$89*0.85 -> 0 | G158: =MAX(0,8.4-G48)*budgets!$F$89*0.85 -> 0 | H158: =MAX(0,8.4-H48)*budgets!$F$89*0.85 -> 0 | I158: =MAX(0,8.4-I48)*budgets!$F$89*0.85 -> 0 | J158: =MAX(0,8.4-J48)*budgets!$F$89*0.85 -> 0
C159: Wgt | F159: =F157*budgets!$E$103+longRun!F158*budgets!$F$103 -> 0 | G159: =G157*budgets!$E$103+longRun!G158*budgets!$F$103 -> 0 | H159: =H157*budgets!$E$103+longRun!H158*budgets!$F$103 -> 0 | I159: =I157*budgets!$E$103+longRun!I158*budgets!$F$103 -> 0 | J159: =J157*budgets!$E$103+longRun!J158*budgets!$F$103 -> 0
B161: Program payments | F161: =IF(budgets!$E$88="ARC",longRun!F132,longRun!F157)*budgets!$E$103+IF(budgets!$F$88="ARC",longRun!F153,longRun!F158)*budgets!$F$103 -> 11.476 | G161: =IF(budgets!$E$88="ARC",longRun!G132,longRun!G157)*budgets!$E$103+IF(budgets!$F$88="ARC",longRun!G153,longRun!G158)*budgets!$F$103 -> 0 | H161: =IF(budgets!$E$88="ARC",longRun!H132,longRun!H157)*budgets!$E$103+IF(budgets!$F$88="ARC",longRun!H153,longRun!H158)*budgets!$F$103 -> 0 | I161: =IF(budgets!$E$88="ARC",longRun!I132,longRun!I157)*budgets!$E$103+IF(budgets!$F$88="ARC",longRun!I153,longRun!I158)*budgets!$F$103 -> 0 | J161: =IF(budgets!$E$88="ARC",longRun!J132,longRun!J157)*budgets!$E$103+IF(budgets!$F$88="ARC",longRun!J153,longRun!J158)*budgets!$F$103 -> 0
B164: Crop Insurance -- corn
C165: TA-Yield | F165: =budgets!E85 -> 183 | G165: =ROUND(F165+(F12-F165)/10,0) -> 185 | H165: =ROUND(G165+(G12-G165)/10,0) -> 187 | I165: =ROUND(H165+(H12-H165)/10,0) -> 189 | J165: =ROUND(I165+(I12-I165)/10,0) -> 191
C166: projected price | F166: =budgets!E86 -> 4.35 | G166: =G30+budgets!$E$17 -> 4.5 | H166: =H30+budgets!$E$17 -> 4.5 | I166: =I30+budgets!$E$17 -> 4.5 | J166: =J30+budgets!$E$17 -> 4.5
C167: coverage level | F167: =budgets!E84 -> 0.85 | G167: =budgets!F84 -> 0.85 | H167: =budgets!G84 -> 0 | I167: =budgets!H84 -> 0 | J167: =budgets!I84 -> 0
C168: harvest price | F168: =F30+budgets!$E$17 -> 4.5 | G168: =G30+budgets!$E$17 -> 4.5 | H168: =H30+budgets!$E$17 -> 4.5 | I168: =I30+budgets!$E$17 -> 4.5 | J168: =J30+budgets!$E$17 -> 4.5
C169: Guarantee | F169: =MAX(F168,F166)*F165*F167 -> 699.975 | G169: =MAX(G168,G166)*G165*G167 -> 707.625 | H169: 0 | I169: 0 | J169: 0
C170: Revenue | F170: =F168*F12 -> 891 | G170: =G168*G12 -> 900 | H170: =H168*H12 -> 909 | I170: =I168*I12 -> 918 | J170: =J168*J12 -> 927
C171: Pay | F171: =MAX(0,F169-F170) -> 0 | G171: =MAX(0,G169-G170) -> 0 | H171: 0 | I171: 0 | J171: 0
B173: Crop Insurance -- soybeans
C174: TA-Yield | F174: =budgets!F85 -> 59 | G174: =F174+(F13-F174)/5 -> 58.6 | H174: =G174+(G13-G174)/5 -> 58.38 | I174: =H174+(H13-H174)/5 -> 58.304 | J174: =I174+(I13-I174)/5 -> 58.3432
C175: projected price | F175: =budgets!F86 -> 10.3 | G175: =G48+budgets!$F$17 -> 10.3 | H175: =H48+budgets!$F$17 -> 10.3 | I175: =I48+budgets!$F$17 -> 10.3 | J175: =J48+budgets!$F$17 -> 10.3
C176: coverage level | F176: =budgets!F84 -> 0.85 | G176: =F176 -> 0.85 | H176: =G176 -> 0.85 | I176: 0.85 | J176: 0.85
C177: harvest price | F177: =F48+budgets!$F$17 -> 10.3 | G177: =G48+budgets!$F$17 -> 10.3 | H177: =H48+budgets!$F$17 -> 10.3 | I177: =I48+budgets!$F$17 -> 10.3 | J177: =J48+budgets!$F$17 -> 10.3
C178: Guarantee | F178: =MAX(F175,F177)*F176*F174 -> 516.545 | G178: =MAX(G175,G177)*G176*G174 -> 513.043 | H178: =MAX(H175,H177)*H176*H174 -> 511.1169 | I178: 510.45152 | J178: 510.794716
C179: Revenue | F179: =F177*F13 -> 587.1 | G179: =G177*G13 -> 592.25 | H179: =H177*H13 -> 597.4 | I179: =I177*I13 -> 602.55 | J179: =J177*J13 -> 607.7
C180: Pay | F180: =MAX(0,F178-F179) -> 0 | G180: =MAX(0,G178-G179) -> 0 | H180: =MAX(0,H178-H179) -> 0 | I180: 0 | J180: 0
B182: Insurance payment | F182: =F171*budgets!$E$14+longRun!F180*budgets!$F$14 -> 0 | G182: =G171*budgets!$E$14+longRun!G180*budgets!$F$14 -> 0 | H182: =H171*budgets!$E$14+longRun!H180*budgets!$F$14 -> 0 | I182: =I171*budgets!$E$14+longRun!I180*budgets!$F$14 -> 0 | J182: =J171*budgets!$E$14+longRun!J180*budgets!$F$14 -> 0
